{"text_format":"1","workbook":"xlsx","n_sheets":7,"sheets":["paramètres FTP","paramètres choix fichiers","fichiers du répertoire cible","Score","Impressions","A3-M15F","TABLE DE MARQUE"],"not_rendered":{"charts":0,"images":10,"macros":1,"external_links":0,"defined_names":54,"comments":2,"pivot_tables":0},"unopened":[],"bounds":{"document_bytes":16777216,"sheet_cells":100000,"rows_first":2000,"rows_last":500,"rows_between":2000,"halvings":0,"cell_chars":16384,"cell_head_chars":4096},"cells_cut":0,"cells_raw":0,"read":"whole","date_system":"1900"}

{"sheet":"paramètres FTP","index":0,"n_rows":17,"n_cols":4,"rows_kept":17,"cut":false,"hidden":true,"merged":[]}
[]
[]
[null,"Paramètres par défaut (FTP)"]
[]
[]
[null,null,null,{"$f":"LEFT(CELL(\"filename\",C1),FIND(\"[\",CELL(\"filename\",C1))-2)&\"\\result.html\"","v":"C:\\Users\\seysf\\Dropbox\\! ! ! ! !Tournoi Noël 2023\\! Tournoi\\result.html"}]
[null,"adresse du site FTP",null,"ftp.cluster027.hosting.ovh.net"]
[]
[null,"Port FTP",null,21]
[]
[null,"Répertoire vers lequel les fichiers doivent être transférés",null,"/www/TIN2023/"]
[]
[null,"Login",null,"sshbfryhnr"]
[]
[null,"Mot de passe"]
[]
[null,"autres paramètres  dans le code de la macro",":","transfert en mode actif / passif, binaire / ascii"]

{"sheet":"paramètres choix fichiers","index":1,"n_rows":11,"n_cols":4,"rows_kept":11,"cut":false,"hidden":true,"merged":[]}
[]
[]
[null,"Paramètres par défaut (choix des fichiers)"]
[]
[]
[null,null,null,{"$f":"LEFT(CELL(\"filename\",C1),FIND(\"[\",CELL(\"filename\",C1))-2)&\"\\result.html\"","v":"C:\\Users\\seysf\\Dropbox\\! ! ! ! !Tournoi Noël 2023\\! Tournoi\\result.html"}]
[null,"adresse du répertoire à transférer",null,{"$f":"LEFT(CELL(\"filename\",K1),FIND(\"[\",CELL(\"filename\",K1))-2)","v":"C:\\Users\\seysf\\Dropbox\\! ! ! ! !Tournoi Noël 2023\\! Tournoi"}]
[]
[null,"âge maxi des fichiers (en jours)",null,"5"]
[]
[null,"types de fichiers à transférer (séparer par des virgules)",null,"html"]

{"sheet":"fichiers du répertoire cible","index":2,"n_rows":6,"n_cols":4,"rows_kept":6,"cut":false,"hidden":true,"merged":[]}
[]
[]
[]
[]
[]
[null,null,null,{"$f":"LEFT(CELL(\"filename\",C1),FIND(\"[\",CELL(\"filename\",C1))-2)&\"\\result.html\"","v":"C:\\Users\\seysf\\Dropbox\\! ! ! ! !Tournoi Noël 2023\\! Tournoi\\result.html"}]

{"sheet":"Score","index":3,"n_rows":71,"n_cols":49,"rows_kept":71,"cut":false,"hidden":false,"merged":[[0,4,1,5],[0,22,2,23]]}
[null,null,null,null,"M15 GARCONS",null,null,null,null,null,null,"https://www.sshb.fr/TIN2023/2023m15G.html",null,null,null,null,null,null,null,null,null,null,2023,null,null,null,null,{"$f":"LEFT(CELL(\"filename\",K1),FIND(\"[\",CELL(\"filename\",K1))-2)&\"\\\"&\"partie_1_m15G.html\"","v":"C:\\Users\\seysf\\Dropbox\\! ! ! ! !Tournoi Noël 2023\\! Tournoi\\partie_1_m15G.html"}]
[null,null,null,null,null,null,null,null,null,null,null,null,null,null,null,null,null,null,null,null,null,null,null,null,null,null,null,"Date de derni&egrave;re modification : 30/11/2023 00:01:59"]
[null,null,null,null,null,null,null,null,null,null,null,null,null,null,null,null,null,null,null,null,null,null,null,null,null,null,null,{"$f":"LEFT(CELL(\"filename\",K3),FIND(\"[\",CELL(\"filename\",K3))-2)&\"\\\"&\"partie_2_m15G.html\"","v":"C:\\Users\\seysf\\Dropbox\\! ! ! ! !Tournoi Noël 2023\\! Tournoi\\partie_2_m15G.html"}]
[null,null,null,null,"GYMNASE REUSS",null,null,null,null,null,null,"JEAN-NICOLAS MULLER",null,null,null,null,null,null,null,null,null,null,null,null,null,null,null,null,null,null,null,null,null,null,null,null,null,null,null,null,null,"Timming",null,"09:00:00"]
[null,null,null,null,"AA",null,"SUC - SSHB",null,null,null,null,"BA",null,"HOENHEIM","HOENHEIM",null,null,null,null,null,null,null,"GYMNASE REUSS",null,null,null,null,null,null,null,null,null,null,null,null,null,null,null,null,null,null,null,"Mise en place","00:02:00"]
[null,null,null,null,"AB",null,"SAHB",null,null,null,null,"BB",null,"PIRATH ATH","PIRATH ATH",null,null,null,null,null,null,null,"Recevants","Visiteurs","Sc-R","Sc-V","Pt-R","Pt-V",null,null,null,"Arbitrage","Sanction",null,null,null,null,null,null,null,null,null,"durée Match Clas","00:12:00"]
[null,null,null,null,"AC",null,"SARREBOURG",null,null,null,null,"BC",null,"MUTZIG","MUTZIG",null,null,null,null,null,null,{"$f":"HOUR(AL7)&\"h\"&TEXT(MINUTE(AL7),\"00\")","v":"9h00"},{"$f":"Equipe_PA_1","v":"AA"},{"$f":"Equipe_PA_2","v":"AB"},null,null,{"$f":"IF(ISBLANK(Y7),\"-\",IF(Y7=Z7,2,IF(Y7<Z7,1,3)))","v":"-"},{"$f":"IF(ISBLANK(Y7),\"-\",IF(Y7=Z7,2,IF(Y7>Z7,1,3)))","v":"-"},null,null,null,null,null,null,null,null,null,{"$f":"depart","v":"09:00:00"},null,null,null,null,"Pause midi","01:03:00"]
[null,null,null,null,"AD",null,"HBC SELTZ",null,null,null,null,"BD",null,"MOSHEIM OC","MOSHEIM OC",null,null,null,null,null,null,"9h19",{"$f":"Equipe_PA_3","v":"AC"},{"$f":"Equipe_PA_4","v":"AD"},null,null,{"$f":"IF(ISBLANK(Y8),\"-\",IF(Y8=Z8,2,IF(Y8<Z8,1,3)))","v":"-"},{"$f":"IF(ISBLANK(Y8),\"-\",IF(Y8=Z8,2,IF(Y8>Z8,1,3)))","v":"-"},null,null,null,"5min d'échauffement au début",null,null,null,null,null,{"$f":"AL7+duree+m_en_p+extra_time","v":"09:19:00"},null,null,null,null,"Exclusions","00:01:00"]
[null,null,null,null,"AE",null,"FORBACH",null,null,null,null,"BE",null,"ALPHA","ALPHA",null,null,null,null,null,null,"9h38",{"$f":"Equipe_PA_5","v":"AE"},{"$f":"Equipe_PA_1","v":"AA"},null,null,"-","-",null,null,null,"5min d'échauffement au début",null,null,null,null,null,{"$f":"AL8+duree+m_en_p+extra_time","v":"09:38:00"},null,null,null,null,"etra time","00:05:00"]
[null,null,null,null,null,null,null,null,null,null,null,null,null,null,null,null,null,null,null,null,null,"9h52",{"$f":"Equipe_PA_2","v":"AB"},{"$f":"Equipe_PA_3","v":"AC"},null,null,"-","-",null,null,null,null,null,null,null,null,null,{"$f":"AL9+duree+m_en_p","v":"09:52:00"}]
[null,null,null,null,null,null,null,null,null,null,null,null,null,null,null,null,null,null,null,null,null,"10h06",{"$f":"Equipe_PA_4","v":"AD"},{"$f":"Equipe_PA_5","v":"AE"},null,null,"-","-",null,null,null,null,null,null,null,null,null,"10:06:00",null,null,"pts","M1+","M1-","M2+","M2-","M3+","M3-","M4+","M4-"]
[null,null,null,null,"GYMNASE REUSS",null,null,null,null,null,null,"JEAN-NICOLAS MULLER",null,null,null,null,null,null,null,null,null,"10h20",{"$f":"Equipe_PA_1","v":"AA"},{"$f":"Equipe_PA_3","v":"AC"},null,null,"-","-",null,null,null,null,null,null,null,null,null,"10:20:00",null,null,10]
[null,null,null,null,"Equipe","Pts","B+","B-","Dif",null,null,"Equipe","Pts","B+","B-","Dif",null,null,null,null,null,"10h34",{"$f":"Equipe_PA_2","v":"AB"},{"$f":"Equipe_PA_4","v":"AD"},null,null,"-","-",null,null,null,null,null,null,null,null,null,"10:34:00"]
[null,null,null,null,{"$f":"Equipe_PA_2","v":"AB"},{"$f":"SUMIF($W$7:$W$16,E14,$AA$7:$AA$16)+SUMIF($X$7:$X$16,E14,$AB$7:$AB$16)","v":0},{"$f":"SUMIF($W$7:$W$16,E14,$Y$7:$Y$16)+SUMIF($X$7:$X$16,E14,$Z$7:$Z$16)","v":0},{"$f":"SUMIF($W$7:$W$16,E14,$Z$7:$Z$16)+SUMIF($X$7:$X$16,E14,$Y$7:$Y$16)","v":0},{"$f":"G14-H14","v":0},"a","v",{"$f":"Equipe_PB_5","v":"BE"},{"$f":"SUMIF($W$19:$W$28,L14,$AA$19:$AA$28)+SUMIF($X$19:$X$28,L14,$AB$19:$AB$28)","v":0},{"$f":"SUMIF($W$19:$W$28,L14,$Y$19:$Y$28)+SUMIF($X$19:$X$28,L14,$Z$19:$Z$28)","v":0},{"$f":"SUMIF($W$19:$W$28,L14,$Z$19:$Z$28)+SUMIF($X$19:$X$28,L14,$Y$19:$Y$28)","v":0},{"$f":"N14-O14","v":0},null,null,null,null,null,"10h48",{"$f":"Equipe_PA_3","v":"AC"},{"$f":"Equipe_PA_5","v":"AE"},null,null,"-","-",null,null,null,null,null,null,null,null,null,"10:48:00",{"$f":"AL14+duree","v":"11:00:00"}]
[null,null,null,null,{"$f":"Equipe_PA_1","v":"AA"},{"$f":"SUMIF($W$7:$W$16,E15,$AA$7:$AA$16)+SUMIF($X$7:$X$16,E15,$AB$7:$AB$16)","v":0},{"$f":"SUMIF($W$7:$W$16,E15,$Y$7:$Y$16)+SUMIF($X$7:$X$16,E15,$Z$7:$Z$16)","v":0},{"$f":"SUMIF($W$7:$W$16,E15,$Z$7:$Z$16)+SUMIF($X$7:$X$16,E15,$Y$7:$Y$16)","v":0},{"$f":"G15-H15","v":0},"b","w",{"$f":"Equipe_PB_4","v":"BD"},{"$f":"SUMIF($W$19:$W$28,L15,$AA$19:$AA$28)+SUMIF($X$19:$X$28,L15,$AB$19:$AB$28)","v":0},{"$f":"SUMIF($W$19:$W$28,L15,$Y$19:$Y$28)+SUMIF($X$19:$X$28,L15,$Z$19:$Z$28)","v":0},{"$f":"SUMIF($W$19:$W$28,L15,$Z$19:$Z$28)+SUMIF($X$19:$X$28,L15,$Y$19:$Y$28)","v":0},{"$f":"N15-O15","v":0},null,null,null,null,null,"11h02",{"$f":"Equipe_PA_4","v":"AD"},{"$f":"Equipe_PA_1","v":"AA"},null,null,"-","-",null,null,null,null,null,null,null,null,null,"11:02:00",{"$f":"AL15+duree","v":"11:14:00"}]
[null,null,null,null,{"$f":"Equipe_PA_3","v":"AC"},{"$f":"SUMIF($W$7:$W$16,E16,$AA$7:$AA$16)+SUMIF($X$7:$X$16,E16,$AB$7:$AB$16)","v":0},{"$f":"SUMIF($W$7:$W$16,E16,$Y$7:$Y$16)+SUMIF($X$7:$X$16,E16,$Z$7:$Z$16)","v":0},{"$f":"SUMIF($W$7:$W$16,E16,$Z$7:$Z$16)+SUMIF($X$7:$X$16,E16,$Y$7:$Y$16)","v":0},{"$f":"G16-H16","v":0},"c","x",{"$f":"Equipe_PB_2","v":"BB"},{"$f":"SUMIF($W$19:$W$28,L16,$AA$19:$AA$28)+SUMIF($X$19:$X$28,L16,$AB$19:$AB$28)","v":0},{"$f":"SUMIF($W$19:$W$28,L16,$Y$19:$Y$28)+SUMIF($X$19:$X$28,L16,$Z$19:$Z$28)","v":0},{"$f":"SUMIF($W$19:$W$28,L16,$Z$19:$Z$28)+SUMIF($X$19:$X$28,L16,$Y$19:$Y$28)","v":0},{"$f":"N16-O16","v":0},null,null,null,null,null,"11h16",{"$f":"Equipe_PA_5","v":"AE"},{"$f":"Equipe_PA_2","v":"AB"},null,null,"-","-",null,null,null,null,null,null,null,null,null,"11:16:00",{"$f":"AL16+duree","v":"11:28:00"}]
[null,null,null,null,{"$f":"Equipe_PA_4","v":"AD"},{"$f":"SUMIF($W$7:$W$16,E17,$AA$7:$AA$16)+SUMIF($X$7:$X$16,E17,$AB$7:$AB$16)","v":0},{"$f":"SUMIF($W$7:$W$16,E17,$Y$7:$Y$16)+SUMIF($X$7:$X$16,E17,$Z$7:$Z$16)","v":0},{"$f":"SUMIF($W$7:$W$16,E17,$Z$7:$Z$16)+SUMIF($X$7:$X$16,E17,$Y$7:$Y$16)","v":0},{"$f":"G17-H17","v":0},"d","y",{"$f":"Equipe_PB_1","v":"BA"},{"$f":"SUMIF($W$19:$W$28,L17,$AA$19:$AA$28)+SUMIF($X$19:$X$28,L17,$AB$19:$AB$28)","v":0},{"$f":"SUMIF($W$19:$W$28,L17,$Y$19:$Y$28)+SUMIF($X$19:$X$28,L17,$Z$19:$Z$28)","v":0},{"$f":"SUMIF($W$19:$W$28,L17,$Z$19:$Z$28)+SUMIF($X$19:$X$28,L17,$Y$19:$Y$28)","v":0},{"$f":"N17-O17","v":0},null,null,null,null,null,null,"JEAN-NICOLAS MULLER",null,null,null,null,null,null,null,null,null,null,null,null,null,null,"11:30:00",{"$f":"AL17+duree","v":"11:42:00"}]
[null,null,null,null,{"$f":"Equipe_PA_5","v":"AE"},{"$f":"SUMIF($W$7:$W$16,E18,$AA$7:$AA$16)+SUMIF($X$7:$X$16,E18,$AB$7:$AB$16)","v":0},{"$f":"SUMIF($W$7:$W$16,E18,$Y$7:$Y$16)+SUMIF($X$7:$X$16,E18,$Z$7:$Z$16)","v":0},{"$f":"SUMIF($W$7:$W$16,E18,$Z$7:$Z$16)+SUMIF($X$7:$X$16,E18,$Y$7:$Y$16)","v":0},{"$f":"G18-H18","v":0},"e","z",{"$f":"Equipe_PB_3","v":"BC"},{"$f":"SUMIF($W$19:$W$28,L18,$AA$19:$AA$28)+SUMIF($X$19:$X$28,L18,$AB$19:$AB$28)","v":0},{"$f":"SUMIF($W$19:$W$28,L18,$Y$19:$Y$28)+SUMIF($X$19:$X$28,L18,$Z$19:$Z$28)","v":0},{"$f":"SUMIF($W$19:$W$28,L18,$Z$19:$Z$28)+SUMIF($X$19:$X$28,L18,$Y$19:$Y$28)","v":0},{"$f":"N18-O18","v":0},null,null,null,null,null,null,"Recevants","Visiteurs","Sc-R","Sc-V","Pt-R","Pt-V"]
[null,null,null,null,null,null,null,null,null,null,null,null,null,null,null,null,null,null,null,null,null,{"$f":"HOUR(AL7)&\"h\"&TEXT(MINUTE(AL7),\"00\")","v":"9h00"},{"$f":"Equipe_PB_1","v":"BA"},{"$f":"Equipe_PB_2","v":"BB"},null,null,{"$f":"IF(ISBLANK(Y19),\"-\",IF(Y19=Z19,2,IF(Y19<Z19,1,3)))","v":"-"},{"$f":"IF(ISBLANK(Y19),\"-\",IF(Y19=Z19,2,IF(Y19>Z19,1,3)))","v":"-"},null,null,null,"5min d'échauffement au début",null,null,null,null,null,{"$f":"AL17+duree+m_en_p+pause","v":"12:47:00"}]
[null,null,null,null,"Equipe","Pts","B+","B-","Dif",null,null,null,null,null,null,null,null,null,null,null,null,{"$f":"HOUR(AL8)&\"h\"&TEXT(MINUTE(AL8),\"00\")","v":"9h19"},{"$f":"Equipe_PB_3","v":"BC"},{"$f":"Equipe_PB_4","v":"BD"},null,null,{"$f":"IF(ISBLANK(Y20),\"-\",IF(Y20=Z20,2,IF(Y20<Z20,1,3)))","v":"-"},{"$f":"IF(ISBLANK(Y20),\"-\",IF(Y20=Z20,2,IF(Y20>Z20,1,3)))","v":"-"},null,null,null,"5min d'échauffement au début",null,null,null,null,null,{"$f":"AL19+duree+m_en_p","v":"13:01:00"}]
[null,null,null,null,{"$f":"IF(ISBLANK($Y$16),\"1er A\",prem_a)","v":"1er A"},{"$f":"SUMIF($W$7:$W$44,E21,$AA$7:$AA$44)+SUMIF($X$7:$X$44,E21,$AB$7:$AB$44)","v":0},{"$f":"SUMIF($W$7:$W$44,E21,$Y$7:$Y$44)+SUMIF($X$7:$X$44,E21,$Z$7:$Z$44)","v":0},{"$f":"SUMIF($W$7:$W$44,E21,$Z$7:$Z$44)+SUMIF($X$7:$X$44,E21,$Y$7:$Y$44)","v":0},{"$f":"G21-H21","v":0},1,null,null,null,null,null,null,null,null,null,null,null,"9h38",{"$f":"Equipe_PB_5","v":"BE"},{"$f":"Equipe_PB_1","v":"BA"},null,null,"-","-",null,null,null,null,null,null,null,null,null,"13:15:00"]
[null,null,null,null,{"$f":"IF(ISBLANK($Y$28),\"1er B\",prem_b)","v":"1er B"},{"$f":"SUMIF($W$7:$W$44,E22,$AA$7:$AA$44)+SUMIF($X$7:$X$44,E22,$AB$7:$AB$44)","v":0},{"$f":"SUMIF($W$7:$W$44,E22,$Y$7:$Y$44)+SUMIF($X$7:$X$44,E22,$Z$7:$Z$44)","v":0},{"$f":"SUMIF($W$7:$W$44,E22,$Z$7:$Z$44)+SUMIF($X$7:$X$44,E22,$Y$7:$Y$44)","v":0},{"$f":"G22-H22","v":0},2,null,null,null,null,null,null,null,null,null,null,null,"9h52",{"$f":"Equipe_PB_2","v":"BB"},{"$f":"Equipe_PB_3","v":"BC"},null,null,"-","-",null,null,null,null,null,null,null,null,null,"13:29:00"]
[null,null,null,null,{"$f":"IF(ISBLANK($Y$28),\"2eme B\",deux_b)","v":"2eme B"},{"$f":"SUMIF($W$7:$W$44,E23,$AA$7:$AA$44)+SUMIF($X$7:$X$44,E23,$AB$7:$AB$44)","v":0},{"$f":"SUMIF($W$7:$W$44,E23,$Y$7:$Y$44)+SUMIF($X$7:$X$44,E23,$Z$7:$Z$44)","v":0},{"$f":"SUMIF($W$7:$W$44,E23,$Z$7:$Z$44)+SUMIF($X$7:$X$44,E23,$Y$7:$Y$44)","v":0},{"$f":"G23-H23","v":0},3,null,null,null,null,null,null,null,null,null,null,null,"10h06",{"$f":"Equipe_PB_4","v":"BD"},{"$f":"Equipe_PB_5","v":"BE"},null,null,"-","-",null,null,null,null,null,null,null,null,null,"13:43:00",null,null,null,null,null,null,null,null,{"$f":"INT(10*RAND())","v":9},6]
[null,null,null,null,{"$f":"IF(ISBLANK($Y$16),\"2eme A\",deux_a)","v":"2eme A"},{"$f":"SUMIF($W$7:$W$44,E24,$AA$7:$AA$44)+SUMIF($X$7:$X$44,E24,$AB$7:$AB$44)","v":0},{"$f":"SUMIF($W$7:$W$44,E24,$Y$7:$Y$44)+SUMIF($X$7:$X$44,E24,$Z$7:$Z$44)","v":0},{"$f":"SUMIF($W$7:$W$44,E24,$Z$7:$Z$44)+SUMIF($X$7:$X$44,E24,$Y$7:$Y$44)","v":0},{"$f":"G24-H24","v":0},4,null,null,null,null,null,null,null,null,null,null,null,"10h20",{"$f":"Equipe_PB_1","v":"BA"},{"$f":"Equipe_PB_3","v":"BC"},null,null,{"$f":"IF(ISBLANK(Y24),\"-\",IF(Y24=Z24,2,IF(Y24<Z24,1,3)))","v":"-"},"-",null,null,null,null,null,null,null,null,null,"13:57:00",null,null,null,null,null,null,null,null,6,6]
[null,null,null,null,null,null,null,null,null,null,null,null,null,null,null,null,null,null,null,null,null,"10h34",{"$f":"Equipe_PB_2","v":"BB"},{"$f":"Equipe_PB_4","v":"BD"},null,null,"-",{"$f":"IF(ISBLANK(Y25),\"-\",IF(Y25=Z25,2,IF(Y25>Z25,1,3)))","v":"-"},null,null,null,null,null,null,null,null,null,"14:11:00",null,null,null,null,null,null,null,null,4,1]
[null,null,null,null,"Equipe","Pts","B+","B-","Dif",null,null,null,null,null,null,null,null,null,null,null,null,"10h48",{"$f":"Equipe_PB_3","v":"BC"},{"$f":"Equipe_PB_5","v":"BE"},null,null,"-","-",null,null,null,null,null,null,null,null,null,"14:25:00",null,null,null,null,null,null,null,null,9,1]
[null,null,null,null,{"$f":"IF(ISBLANK($Y$16),\"3ème A\",trois_a)","v":"3ème A"},{"$f":"SUMIF($W$7:$W$44,E27,$AA$7:$AA$44)+SUMIF($X$7:$X$44,E27,$AB$7:$AB$44)","v":0},{"$f":"SUMIF($W$7:$W$44,E27,$Y$7:$Y$44)+SUMIF($X$7:$X$44,E27,$Z$7:$Z$44)","v":0},{"$f":"SUMIF($W$7:$W$44,E27,$Z$7:$Z$44)+SUMIF($X$7:$X$44,E27,$Y$7:$Y$44)","v":0},{"$f":"G27-H27","v":0},1,null,null,null,null,null,null,null,null,null,null,null,"11h02",{"$f":"Equipe_PB_4","v":"BD"},{"$f":"Equipe_PB_1","v":"BA"},null,null,"-","-",null,null,null,null,null,null,null,null,null,"14:39:00",null,null,null,null,null,null,null,null,7,7]
[null,null,null,null,{"$f":"IF(ISBLANK($Y$28),\"3ème B\",trois_b)","v":"3ème B"},0,0,0,0,2,null,null,null,null,null,null,null,null,null,null,null,"11h16",{"$f":"Equipe_PB_5","v":"BE"},{"$f":"Equipe_PB_2","v":"BB"},null,null,"-","-",null,null,null,null,null,null,null,null,null,"14:53:00",null,null,null,null,null,null,null,null,6,2]
[null,null,null,null,{"$f":"IF(ISBLANK($Y$16),\"4ème A\",quat_a)","v":"4ème A"},0,0,0,0,3,null,null,null,null,null,null,null,null,null,null,null,null,"GYMNASE REUSS",null,null,null,null,null,null,null,null,null,null,null,null,null,null,"15:07:00",null,null,null,null,null,null,null,null,5,5]
[null,null,null,null,{"$f":"IF(ISBLANK($Y$28),\"4ème B\",quat_b)","v":"4ème B"},0,0,0,0,4,null,null,null,null,null,null,null,null,null,null,null,{"$f":"HOUR(AL19)&\"h\"&TEXT(MINUTE(AL19),\"00\")","v":"12h47"},{"$f":"IF(ISBLANK($Y$16),\"4ème A\",quat_a)","v":"4ème A"},{"$f":"IF(ISBLANK($Y$28),\"3ème B\",trois_b)","v":"3ème B"},null,null,{"$f":"IF(ISBLANK(Y30),\"-\",IF(Y30=Z30,2,IF(Y30<Z30,1,3)))","v":"-"},{"$f":"IF(ISBLANK(Y30),\"-\",IF(Y30=Z30,2,IF(Y30>Z30,1,3)))","v":"-"},null,null,null,null,null,null,null,null,null,{"$f":"AL29+duree+m_en_p","v":"15:21:00"},null,null,null,null,null,null,null,null,3,7]
[null,null,null,null,{"$f":"IF(ISBLANK($Y$28),\"5ème B\",cinq_b)","v":"5ème B"},0,0,0,0,5,null,null,null,null,null,null,null,null,null,null,null,"13h01",{"$f":"IF(ISBLANK($Y$16),\"5ème A\",cinq_a)","v":"5ème A"},{"$f":"IF(ISBLANK($Y$28),\"5ème B\",cinq_b)","v":"5ème B"},null,null,"-","-",null,null,null,null,null,null,null,null,null,"15:35:00",null,null,null,null,null,null,null,null,5,6]
[null,null,null,null,{"$f":"IF(ISBLANK($Y$16),\"5ème A\",cinq_a)","v":"5ème A"},0,0,0,0,6,null,null,null,null,null,null,null,null,null,null,null,"13h15",{"$f":"IF(ISBLANK($Y$16),\"3ème A\",trois_a)","v":"3ème A"},{"$f":"IF(ISBLANK($Y$28),\"4ème B\",quat_b)","v":"4ème B"},null,null,"-","-",null,null,null,null,null,null,null,null,null,"15:49:00",null,null,null,null,null,null,null,null,3,4]
[null,null,null,null,null,null,null,null,null,null,null,null,null,null,null,null,null,null,null,null,null,"13h29",{"$f":"IF(ISBLANK($Y$16),\"1er A\",prem_a)","v":"1er A"},{"$f":"IF(ISBLANK($Y$16),\"2eme A\",deux_a)","v":"2eme A"},null,null,"-","-",null,null,null,null,null,null,null,null,null,{"$f":"AL32+duree+m_en_p","v":"16:03:00"},null,null,null,null,null,null,null,null,2,2]
[null,null,null,null,"En cas d'égalité entre 2 équipes à la fin de tous les matchs",null,null,null,null,null,null,null,null,null,null,null,null,null,null,null,null,"13h43",{"$f":"IF(ISBLANK($Y$28),\"1er B\",prem_b)","v":"1er B"},{"$f":"IF(ISBLANK($Y$28),\"2eme B\",deux_b)","v":"2eme B"},null,null,{"$f":"IF(ISBLANK(Y34),\"-\",IF(Y34=Z34,2,IF(Y34<Z34,1,3)))","v":"-"},{"$f":"IF(ISBLANK(Y34),\"-\",IF(Y34=Z34,2,IF(Y34>Z34,1,3)))","v":"-"},null,null,null,null,null,null,null,null,null,"16:17:00",null,null,null,null,null,null,null,null,7,7]
[null,null,null,null,"vérifier le goal avérage particulier entre ces 2 équipes",null,null,null,null,null,null,null,null,null,null,null,null,null,null,null,null,"13h57",{"$f":"IF(ISBLANK($Y$28),\"3ème B\",trois_b)","v":"3ème B"},{"$f":"IF(ISBLANK($Y$16),\"5ème A\",cinq_a)","v":"5ème A"},null,null,"-","-",null,null,null,null,null,null,null,null,null,{"$f":"AL34+duree+m_en_p","v":"16:31:00"},null,null,null,null,null,null,null,null,0,5]
[null,null,null,null,"si l'égalité persiste, faire procéder à une séance de jet de 7 m",null,null,null,null,null,null,null,null,null,null,null,null,null,null,null,null,"14h11",{"$f":"IF(ISBLANK($Y$28),\"4ème B\",quat_b)","v":"4ème B"},{"$f":"IF(ISBLANK($Y$16),\"4ème A\",quat_a)","v":"4ème A"},null,null,"-","-",null,null,null,null,null,null,null,null,null,{"$f":"AL35+duree+m_en_p","v":"16:45:00"},null,null,null,null,null,null,null,null,9,1]
[null,null,null,null,"(3 tir chacun puis mort subite)",null,null,null,null,null,null,null,null,null,null,null,null,null,null,null,null,"14h25",{"$f":"IF(ISBLANK($Y$28),\"5ème B\",cinq_b)","v":"5ème B"},{"$f":"IF(ISBLANK($Y$16),\"3ème A\",trois_a)","v":"3ème A"},null,null,"-","-",null,null,null,null,null,null,null,null,null,{"$f":"AL36+duree+m_en_p","v":"16:59:00"},null,null,null,null,null,null,null,null,5,9]
[null,null,null,null,null,null,null,null,null,null,null,null,null,null,null,null,null,null,null,null,null,"14h39",{"$f":"IF(ISBLANK($Y$28),\"2eme B\",deux_b)","v":"2eme B"},{"$f":"IF(ISBLANK($Y$16),\"1er A\",prem_a)","v":"1er A"},null,null,"-","-",null,null,null,null,null,null,null,null,null,{"$f":"AL37+duree+m_en_p","v":"17:13:00"},null,null,null,null,null,null,null,null,9,6]
[null,null,null,null,null,null,null,null,null,null,null,null,null,null,null,null,null,null,null,null,null,"14h53",{"$f":"IF(ISBLANK($Y$16),\"2eme A\",deux_a)","v":"2eme A"},{"$f":"IF(ISBLANK($Y$28),\"1er B\",prem_b)","v":"1er B"},null,null,"-","-",null,null,null,null,null,null,null,null,null,"17:27:00",null,null,null,null,null,null,null,null,6,3]
[null,null,null,null,null,null,null,null,null,null,null,null,null,null,null,null,null,null,null,null,null,"15h07",{"$f":"IF(ISBLANK($Y$16),\"5ème A\",cinq_a)","v":"5ème A"},{"$f":"IF(ISBLANK($Y$28),\"4ème B\",quat_b)","v":"4ème B"},null,null,"-","-",null,null,null,null,null,null,null,null,null,"17:41:00",null,null,null,null,null,null,null,null,2,3]
[null,null,null,null,null,null,null,null,null,null,null,null,null,null,null,null,null,null,null,null,null,{"$f":"HOUR(AL30)&\"h\"&TEXT(MINUTE(AL30),\"00\")","v":"15h21"},{"$f":"IF(ISBLANK($Y$16),\"4ème A\",quat_a)","v":"4ème A"},{"$f":"IF(ISBLANK($Y$28),\"5ème B\",cinq_b)","v":"5ème B"},null,null,"-","-",null,null,null,null,null,null,null,null,null,"17:55:00",null,null,null,null,null,null,null,null,9,5]
[null,null,null,null,null,null,null,null,null,null,null,null,null,null,null,null,null,null,null,null,null,{"$f":"HOUR(AL31)&\"h\"&TEXT(MINUTE(AL31),\"00\")","v":"15h35"},{"$f":"IF(ISBLANK($Y$16),\"3ème A\",trois_a)","v":"3ème A"},{"$f":"IF(ISBLANK($Y$28),\"3ème B\",trois_b)","v":"3ème B"},null,null,"-","-",null,null,null,null,null,null,null,null,null,"18:09:00",null,null,null,null,null,null,null,null,3,9]
[null,null,null,null,null,null,null,null,null,null,null,null,null,null,null,null,null,null,null,null,null,{"$f":"HOUR(AL32)&\"h\"&TEXT(MINUTE(AL32),\"00\")","v":"15h49"},{"$f":"IF(ISBLANK($Y$16),\"2eme A\",deux_a)","v":"2eme A"},{"$f":"IF(ISBLANK($Y$28),\"2eme B\",deux_b)","v":"2eme B"},null,null,"-","-",null,null,null,null,null,null,null,null,null,"18:23:00",null,null,null,null,null,null,null,null,9,3]
[null,null,null,null,null,null,null,null,null,null,null,null,null,null,null,null,null,null,null,null,null,"16h03",{"$f":"IF(ISBLANK($Y$16),\"1er A\",prem_a)","v":"1er A"},{"$f":"IF(ISBLANK($Y$28),\"1er B\",prem_b)","v":"1er B"},null,null,"-","-",null,null,null,null,null,null,null,null,null,"18:37:00",null,null,null,null,null,null,null,null,7,3]
[null,null,null,null,null,null,null,null,null,null,null,null,null,null,null,null,null,null,null,null,null,null,null,null,null,null,null,null,null,null,null,null,null,null,null,null,null,"18:51:00",null,null,null,null,null,null,null,null,6,3]
[null,null,null,null,null,null,null,null,null,null,null,null,null,null,null,null,null,null,null,null,null,null,null,null,null,null,null,null,null,null,null,null,null,null,null,null,null,"19:05:00",null,null,null,null,null,null,null,null,0,2]
[null,null,null,null,null,null,null,null,null,null,null,null,null,null,null,null,null,null,null,null,null,null,null,null,null,null,null,null,null,null,null,null,null,null,null,null,null,"19:19:00",null,null,null,null,null,null,null,null,4,6]
[null,null,null,null,null,null,null,null,null,null,null,null,null,null,null,null,null,null,null,null,null,null,null,null,null,null,null,null,null,null,null,null,null,null,null,null,null,"19:33:00",null,null,null,null,null,null,null,null,6,5]
[null,null,null,null,null,null,null,null,null,null,null,null,null,null,null,null,null,null,null,null,null,null,null,null,null,null,null,null,null,null,null,null,null,null,null,null,null,"19:47:00",null,null,null,null,null,null,null,null,2,9]
[null,null,null,null,null,null,null,null,null,null,null,null,null,null,null,null,null,null,null,null,null,null,null,null,null,null,null,null,null,null,null,null,null,null,null,null,null,"20:01:00",null,null,null,null,null,null,null,null,1,6]
[null,null,null,null,null,null,null,null,null,null,null,null,null,null,null,null,null,null,null,null,null,null,null,null,null,null,null,null,null,null,null,null,null,null,null,null,null,"20:15:00",null,null,null,null,null,null,null,null,8,6]
[null,null,null,null,null,null,null,null,null,null,null,null,null,null,null,null,null,null,null,null,null,null,null,null,null,null,null,null,null,null,null,null,null,null,null,null,null,{"$f":"AL51+duree+m_en_p","v":"20:29:00"},null,null,null,null,null,null,null,null,2,8]
[null,null,null,null,null,null,null,null,null,null,null,null,null,null,null,null,null,null,null,null,null,null,null,null,null,null,null,null,null,null,null,null,null,null,null,null,null,"20:43:00",null,null,null,null,null,null,null,null,6,4]
[null,null,null,null,null,null,null,null,null,null,null,null,null,null,null,null,null,null,null,null,null,null,null,null,null,null,null,null,null,null,null,null,null,null,null,null,null,"20:57:00"]
[null,null,null,null,null,null,null,null,null,null,null,null,null,null,null,null,null,null,null,null,null,null,null,null,null,null,null,null,null,null,null,null,null,null,null,null,null,"21:11:00"]
[null,null,null,null,null,null,null,null,null,null,null,null,null,null,null,null,null,null,null,null,null,null,null,null,null,null,null,null,null,null,null,null,null,null,null,null,null,"21:25:00"]
[null,null,null,null,null,null,null,null,null,null,null,null,null,null,null,null,null,null,null,null,null,null,null,null,null,null,null,null,null,null,null,null,null,null,null,null,null,"21:39:00"]
[null,null,null,null,null,null,null,null,null,null,null,null,null,null,null,null,null,null,null,null,null,null,null,null,null,null,null,null,null,null,null,null,null,null,null,null,null,"21:53:00"]
[null,null,null,null,null,null,null,null,null,null,null,null,null,null,null,null,null,null,null,null,null,null,null,null,null,null,null,null,null,null,null,null,null,null,null,null,null,"22:07:00"]
[null,null,null,null,null,null,null,null,null,null,null,null,null,null,null,null,null,null,null,null,null,null,null,null,null,null,null,null,null,null,null,null,null,null,null,null,null,"22:21:00"]
[null,null,null,null,null,null,null,null,null,null,null,null,null,null,null,null,null,null,null,null,null,null,null,null,null,null,null,null,null,null,null,null,null,null,null,null,null,"22:35:00"]
[null,null,null,null,null,null,null,null,null,null,null,null,null,null,null,null,null,null,null,null,null,null,null,null,null,null,null,null,null,null,null,null,null,null,null,null,null,"22:49:00"]
[null,null,null,null,null,null,null,null,null,null,null,null,null,null,null,null,null,null,null,null,null,null,null,null,null,null,null,null,null,null,null,null,null,null,null,null,null,"23:03:00"]
[null,null,null,null,null,null,null,null,null,null,null,null,null,null,null,null,null,null,null,null,null,null,null,null,null,null,null,null,null,null,null,null,null,null,null,null,null,"23:17:00"]
[null,null,null,null,null,null,null,null,null,null,null,null,null,null,null,null,null,null,null,null,null,null,null,null,null,null,null,null,null,null,null,null,null,null,null,null,null,"23:31:00"]
[null,null,null,null,null,null,null,null,null,null,null,null,null,null,null,null,null,null,null,null,null,null,null,null,null,null,null,null,null,null,null,null,null,null,null,null,null,"23:45:00"]
[null,null,null,null,null,null,null,null,null,null,null,null,null,null,null,null,null,null,null,null,null,null,null,null,null,null,null,null,null,null,null,null,null,null,null,null,null,"23:59:00"]
[null,null,null,null,null,null,null,null,null,null,null,null,null,null,null,null,null,null,null,null,null,null,null,null,null,null,null,null,null,null,null,null,null,null,null,null,null,1.0090277777777763]
[null,null,null,null,null,null,null,null,null,null,null,null,null,null,null,null,null,null,null,null,null,null,null,null,null,null,null,null,null,null,null,null,null,null,null,null,null,1.0187499999999985]
[null,null,null,null,null,null,null,null,null,null,null,null,null,null,null,null,null,null,null,null,null,null,null,null,null,null,null,null,null,null,null,null,null,null,null,null,null,1.0284722222222207]
[null,null,null,null,null,null,null,null,null,null,null,null,null,null,null,null,null,null,null,null,null,null,null,null,null,null,null,null,null,null,null,null,null,null,null,null,null,1.0381944444444429]

{"sheet":"Impressions","index":4,"n_rows":46,"n_cols":29,"rows_kept":46,"cut":false,"hidden":false,"merged":[[2,1,2,3],[28,12,44,15]]}
[null,null,null,null,null,null,null,null,null,null,null,null,null,null,null,null,null,null,null,null,null,null,null,null,null,null,null,null,{"$f":"LEFT(CELL(\"filename\",M1),FIND(\"[\",CELL(\"filename\",M1))-2)&\"\\\"&\"2018-tournoi_m_15G.html\"","v":"C:\\Users\\seysf\\Dropbox\\! ! ! ! !Tournoi Noël 2023\\! Tournoi\\2018-tournoi_m_15G.html"}]
[null,null,null,null,null,null,null,null,null,null,null,null,null,null,null,null,null,null,null,null,null,null,null,null,null,null,null,null,"Date de derni&egrave;re modification : 04/12/2018 12:24:51"]
[null,"TOURNOI INTERNATIONAL NOEL.\nStrasbourg, 2023",null,null,null,null,null,null,null,null,"MOINS DE 15 GARCONS\nSAMEDI 16 DECEMBRE 2023"]
[]
[null,null,"GYMNASE REUSS",null,null,null,null,null,null,"Gymnase JEAN-NICOLAS MULLER",null,null,"Suivi de la compétition en direct"]
[null,null,"62 Allée Reuss",null,null,null,null,null,null,"36, rue du Languedoc",null,null,"Réultats et classement mis à jours"]
[null,null,"67100 Strasbourg",null,null,null,null,null,null,"67100 Strasbourg"]
[null,null,null,null,null,null,null,null,null,null,null,"https://www.sshb.fr/TIN2023/2023m15G.html"]
[null,null,{"$f":"Score!E4","v":"GYMNASE REUSS"},null,null,null,null,null,null,{"$f":"Score!L4","v":"JEAN-NICOLAS MULLER"}]
[null,null,{"$f":"Score!E5","v":"AA"},null,null,null,null,null,null,{"$f":"Score!L5","v":"BA"}]
[null,null,{"$f":"Score!E6","v":"AB"},null,null,null,null,null,null,{"$f":"Score!L6","v":"BB"}]
[null,null,{"$f":"Score!E7","v":"AC"},null,null,null,null,null,null,{"$f":"Score!L7","v":"BC"}]
[null,null,{"$f":"Score!E8","v":"AD"},null,null,null,null,null,null,{"$f":"Score!L8","v":"BD"}]
[null,null,{"$f":"Score!E9","v":"AE"},null,null,null,null,null,null,{"$f":"Score!L9","v":"BE"}]
[]
[null,null,"Recevants","Visiteurs","Sc-R","Sc-V","Pt-R","Pt-V",null,"Recevants","Visiteurs","Sc-R","Sc-V","Pt-R","Pt-V","Qrcode généré par Qrcode Générator"]
[null,{"$f":"Score!V7","v":"9h00"},{"$f":"Score!W7","v":"AA"},{"$f":"Score!X7","v":"AB"},null,null,null,null,null,{"$f":"Score!W19","v":"BA"},{"$f":"Score!X19","v":"BB"}]
[null,{"$f":"Score!V8","v":"9h19"},{"$f":"Score!W8","v":"AC"},{"$f":"Score!X8","v":"AD"},null,null,null,null,null,{"$f":"Score!W20","v":"BC"},{"$f":"Score!X20","v":"BD"},null,null,null,null,"+ 5 min d'échauff"]
[null,{"$f":"Score!V9","v":"9h38"},{"$f":"Score!W9","v":"AE"},{"$f":"Score!X9","v":"AA"},null,null,null,null,null,{"$f":"Score!W21","v":"BE"},{"$f":"Score!X21","v":"BA"},null,null,null,null,"+ 5 min d'échauff"]
[null,{"$f":"Score!V10","v":"9h52"},{"$f":"Score!W10","v":"AB"},{"$f":"Score!X10","v":"AC"},null,null,null,null,null,{"$f":"Score!W22","v":"BB"},{"$f":"Score!X22","v":"BC"},null,null,null,null,"+ 5 min d'échauff"]
[null,{"$f":"Score!V11","v":"10h06"},{"$f":"Score!W11","v":"AD"},{"$f":"Score!X11","v":"AE"},null,null,null,null,null,{"$f":"Score!W23","v":"BD"},{"$f":"Score!X23","v":"BE"}]
[null,{"$f":"Score!V12","v":"10h20"},{"$f":"Score!W12","v":"AA"},{"$f":"Score!X12","v":"AC"},null,null,null,null,null,{"$f":"Score!W24","v":"BA"},{"$f":"Score!X24","v":"BC"}]
[null,{"$f":"Score!V13","v":"10h34"},{"$f":"Score!W13","v":"AB"},{"$f":"Score!X13","v":"AD"},null,null,null,null,null,{"$f":"Score!W25","v":"BB"},{"$f":"Score!X25","v":"BD"}]
[null,{"$f":"Score!V14","v":"10h48"},{"$f":"Score!W14","v":"AC"},{"$f":"Score!X14","v":"AE"},null,null,null,null,null,{"$f":"Score!W26","v":"BC"},{"$f":"Score!X26","v":"BE"}]
[null,{"$f":"Score!V15","v":"11h02"},{"$f":"Score!W15","v":"AD"},{"$f":"Score!X15","v":"AA"},null,null,null,null,null,{"$f":"Score!W27","v":"BD"},{"$f":"Score!X27","v":"BA"}]
[null,{"$f":"Score!V16","v":"11h16"},{"$f":"Score!W16","v":"AE"},{"$f":"Score!X16","v":"AB"},null,null,null,null,null,{"$f":"Score!W28","v":"BE"},{"$f":"Score!X28","v":"BB"}]
[null,null,"Pause repas",null,null,null,null,null,null,"Déplacement vers Gymnase des 2 rives (env 15min)"]
[null,null,"Une heure de repas sera précisée à chaque équipe ayant réservé ses repas\n"]
[null,null,"Recevants","Visiteurs","Sc-R","Sc-V","Pt-R","Pt-V",null,null,null,null,"Particularités du tournoi M15 Fém :\n•• Les 2 premières équipes de chaque poules sont qualifées pour la poule Elite\n(cette poule de 4 équipes se jouera en championnat \"complet\", toutes les équipes se rencontrent)\n\n•• Les 3 autres équipes sont reversées dans 1 poule Espoir de 6.\n(cette poule est jouée en championnat \"restreint\", les oppositions jouées le matin ne sont pas rejouées)\n\n•• Les résultats de la première phase sont conservés.\n\n•• l'ordre des match est déterminé par le classement de la première phase."]
[null,{"$f":"Score!V30","v":"12h47"},{"$f":"Score!W30","v":"4ème A"},{"$f":"Score!X30","v":"3ème B"}]
[null,{"$f":"Score!V31","v":"13h01"},{"$f":"Score!W31","v":"5ème A"},{"$f":"Score!X31","v":"5ème B"},null,null,null,null,null,null,"PALMARES"]
[null,{"$f":"Score!V32","v":"13h15"},{"$f":"Score!W32","v":"3ème A"},{"$f":"Score!X32","v":"4ème B"},null,null,null,null,null,null,"POULE ELITE"]
[null,{"$f":"Score!V33","v":"13h29"},{"$f":"Score!W33","v":"1er A"},{"$f":"Score!X33","v":"2eme A"},null,null,null,null,null,"1er"]
[null,{"$f":"Score!V34","v":"13h43"},{"$f":"Score!W34","v":"1er B"},{"$f":"Score!X34","v":"2eme B"},null,null,null,null,null,"2ème"]
[null,{"$f":"Score!V35","v":"13h57"},{"$f":"Score!W35","v":"3ème B"},{"$f":"Score!X35","v":"5ème A"},null,null,null,null,null,"3ème"]
[null,{"$f":"Score!V36","v":"14h11"},{"$f":"Score!W36","v":"4ème B"},{"$f":"Score!X36","v":"4ème A"},null,null,null,null,null,"4ème"]
[null,{"$f":"Score!V37","v":"14h25"},{"$f":"Score!W37","v":"5ème B"},{"$f":"Score!X37","v":"3ème A"}]
[null,{"$f":"Score!V38","v":"14h39"},{"$f":"Score!W38","v":"2eme B"},{"$f":"Score!X38","v":"1er A"},null,null,null,null,null,null,"POULE ESPOIR"]
[null,{"$f":"Score!V39","v":"14h53"},{"$f":"Score!W39","v":"2eme A"},{"$f":"Score!X39","v":"1er B"},null,null,null,null,null,"1er"]
[null,{"$f":"Score!V40","v":"15h07"},{"$f":"Score!W40","v":"5ème A"},{"$f":"Score!X40","v":"4ème B"},null,null,null,null,null,"2ème"]
[null,{"$f":"Score!V41","v":"15h21"},{"$f":"Score!W41","v":"4ème A"},{"$f":"Score!X41","v":"5ème B"},null,null,null,null,null,"3ème"]
[null,{"$f":"Score!V42","v":"15h35"},{"$f":"Score!W42","v":"3ème A"},{"$f":"Score!X42","v":"3ème B"},null,null,null,null,null,"4ème"]
[null,{"$f":"Score!V43","v":"15h49"},{"$f":"Score!W43","v":"2eme A"},{"$f":"Score!X43","v":"2eme B"},null,null,null,null,null,"5ème"]
[null,{"$f":"Score!V44","v":"16h03"},{"$f":"Score!W44","v":"1er A"},{"$f":"Score!X44","v":"1er B"},null,null,null,null,null,"6ème"]
[]
[null,null,"Si égalité à l'issue des matchs de brassage ou à l'issue des matchs de classement, goal avérage particulier, puis séance de jet de 7m (3 tirs puis but en or)"]

{"sheet":"A3-M15F","index":5,"n_rows":60,"n_cols":30,"rows_kept":60,"cut":false,"hidden":false,"merged":[[2,0,2,2]]}
[null,null,null,null,null,null,null,null,null,null,null,null,null,null,null,null,null,null,null,null,null,null,null,null,null,null,null,null,null,{"$f":"LEFT(CELL(\"filename\",N1),FIND(\"[\",CELL(\"filename\",N1))-2)&\"\\\"&\"2018-tournoi_m_15G.html\"","v":"C:\\Users\\seysf\\Dropbox\\! ! ! ! !Tournoi Noël 2023\\! Tournoi\\2018-tournoi_m_15G.html"}]
[null,null,null,null,null,null,null,null,null,null,null,null,null,null,null,null,null,null,null,null,null,null,null,null,null,null,null,null,null,"Date de derni&egrave;re modification : 04/12/2018 12:24:51"]
["TOURNOI INTERNATIONAL NOEL.\nStrasbourg, 2023",null,null,null,null,null,null,null,null,"MOINS DE 15 MASCULINS\nSAMEDI 16 DECEMBRE 2023",null,"MOINS DE 15 GARCONS\nSAMEDI 16 DECEMBRE 2023"]
[]
["Suivi de la compétition en direct, résultats mis à jour",null,null,null,null,"https://www.sshb.fr/TIN2023/2023m15G.html"]
["PREMIÈRE PHASE : POULES DE BRASSAGE"]
[]
[null,"GYMNASE REUSS",null,null,null,null,null,null,null,null,"Gymnase JEAN-NICOLAS MULLER"]
[null,"62 Allée Reuss",null,null,null,null,null,null,null,null,"36, rue du Languedoc"]
[null,"67100 Strasbourg",null,null,null,null,null,null,null,null,"67100 Strasbourg"]
[]
[null,{"$f":"Score!E4","v":"GYMNASE REUSS"},null,null,null,null,null,null,null,null,{"$f":"Score!L4","v":"JEAN-NICOLAS MULLER"}]
[null,{"$f":"Score!E5","v":"AA"},null,null,null,null,null,null,null,null,{"$f":"Score!L5","v":"BA"}]
[null,{"$f":"Score!E6","v":"AB"},null,null,null,null,null,null,null,null,{"$f":"Score!L6","v":"BB"}]
[null,{"$f":"Score!E7","v":"AC"},null,null,null,null,null,null,null,null,{"$f":"Score!L7","v":"BC"}]
[null,{"$f":"Score!E8","v":"AD"},null,null,null,null,null,null,null,null,{"$f":"Score!L8","v":"BD"}]
[null,{"$f":"Score!E9","v":"AE"},null,null,null,null,null,null,null,null,{"$f":"Score!L9","v":"BE"}]
[]
[null,"Recevants","Visiteurs","Sc-R","Sc-V","Pt-R","Pt-V",null,null,null,"Recevants","Visiteurs","Sc-R","Sc-V","Pt-R","Pt-V"]
[{"$f":"Score!V7","v":"9h00"},{"$f":"Score!W7","v":"AA"},{"$f":"Score!X7","v":"AB"},null,null,null,null,null,null,null,{"$f":"Score!W19","v":"BA"},{"$f":"Score!X19","v":"BB"}]
[{"$f":"Score!V8","v":"9h19"},{"$f":"Score!W8","v":"AC"},{"$f":"Score!X8","v":"AD"},null,null,null,null,null,null,null,{"$f":"Score!W20","v":"BC"},{"$f":"Score!X20","v":"BD"}]
[{"$f":"Score!V9","v":"9h38"},{"$f":"Score!W9","v":"AE"},{"$f":"Score!X9","v":"AA"},null,null,null,null,null,null,null,{"$f":"Score!W21","v":"BE"},{"$f":"Score!X21","v":"BA"}]
[{"$f":"Score!V10","v":"9h52"},{"$f":"Score!W10","v":"AB"},{"$f":"Score!X10","v":"AC"},null,null,null,null,null,null,null,{"$f":"Score!W22","v":"BB"},{"$f":"Score!X22","v":"BC"}]
[{"$f":"Score!V11","v":"10h06"},{"$f":"Score!W11","v":"AD"},{"$f":"Score!X11","v":"AE"},null,null,null,null,null,null,null,{"$f":"Score!W23","v":"BD"},{"$f":"Score!X23","v":"BE"}]
[{"$f":"Score!V12","v":"10h20"},{"$f":"Score!W12","v":"AA"},{"$f":"Score!X12","v":"AC"},null,null,null,null,null,null,null,{"$f":"Score!W24","v":"BA"},{"$f":"Score!X24","v":"BC"}]
[{"$f":"Score!V13","v":"10h34"},{"$f":"Score!W13","v":"AB"},{"$f":"Score!X13","v":"AD"},null,null,null,null,null,null,null,{"$f":"Score!W25","v":"BB"},{"$f":"Score!X25","v":"BD"}]
[{"$f":"Score!V14","v":"10h48"},{"$f":"Score!W14","v":"AC"},{"$f":"Score!X14","v":"AE"},null,null,null,null,null,null,null,{"$f":"Score!W26","v":"BC"},{"$f":"Score!X26","v":"BE"}]
[{"$f":"Score!V15","v":"11h02"},{"$f":"Score!W15","v":"AD"},{"$f":"Score!X15","v":"AA"},null,null,null,null,null,null,null,{"$f":"Score!W27","v":"BD"},{"$f":"Score!X27","v":"BA"}]
[{"$f":"Score!V16","v":"11h16"},{"$f":"Score!W16","v":"AE"},{"$f":"Score!X16","v":"AB"},null,null,null,null,null,null,null,{"$f":"Score!W28","v":"BE"},{"$f":"Score!X28","v":"BB"}]
[null,"Pause repas",null,null,null,null,null,null,null,null,"Déplacement vers Gymnase des 2 rives (env 15min)"]
[null,"Une heure de repas sera précisée à chaque équipe ayant réservé ses repas\n"]
[null,"En cas d'égalité à l'issue des matchs de brassage : goal avérage particuler, puis séance de jet de 7m (3 jets par équipe puis but en or)"]
[null,null,"CLASSEMENTS PREMIÈRE PHASE"]
[]
[null,null,"POULE A",null,null,null,null,null,null,null,null,"POULE B"]
[null,"1ère",null,"=> élite",null,null,null,null,null,null,"1ère",null,"=> élite"]
[null,"2ème",null,"=> élite",null,null,null,null,null,null,"2ème",null,"=> élite"]
[null,"3ème",null,"=> espoir",null,null,null,null,null,null,"3ème",null,"=> espoir"]
[null,"4ème",null,"=> espoir",null,null,null,null,null,null,"4ème",null,"=> espoir"]
[null,"5ème",null,"=> espoir",null,null,null,null,null,null,"5ème",null,"=> espoir"]
[]
[]
["DEUXIÈME PHASE : POULES DE CLASSEMENT"]
[]
[null,"Recevants","Visiteurs","Sc-R","Sc-V","Pt-R","Pt-V"]
[{"$f":"Score!V30","v":"12h47"},{"$f":"Score!W30","v":"4ème A"},{"$f":"Score!X30","v":"3ème B"},null,null,null,null,null,null,null,null,"PALMARES"]
[{"$f":"Score!V31","v":"13h01"},{"$f":"Score!W31","v":"5ème A"},{"$f":"Score!X31","v":"5ème B"}]
[{"$f":"Score!V32","v":"13h15"},{"$f":"Score!W32","v":"3ème A"},{"$f":"Score!X32","v":"4ème B"},null,null,null,null,null,null,null,null,"POULE ELITE"]
[{"$f":"Score!V33","v":"13h29"},{"$f":"Score!W33","v":"1er A"},{"$f":"Score!X33","v":"2eme A"},null,null,null,null,null,null,null,"1er"]
[{"$f":"Score!V34","v":"13h43"},{"$f":"Score!W34","v":"1er B"},{"$f":"Score!X34","v":"2eme B"},null,null,null,null,null,null,null,"2ème"]
[{"$f":"Score!V35","v":"13h57"},{"$f":"Score!W35","v":"3ème B"},{"$f":"Score!X35","v":"5ème A"},null,null,null,null,null,null,null,"3ème"]
[{"$f":"Score!V36","v":"14h11"},{"$f":"Score!W36","v":"4ème B"},{"$f":"Score!X36","v":"4ème A"},null,null,null,null,null,null,null,"4ème"]
[{"$f":"Score!V37","v":"14h25"},{"$f":"Score!W37","v":"5ème B"},{"$f":"Score!X37","v":"3ème A"}]
[{"$f":"Score!V38","v":"14h39"},{"$f":"Score!W38","v":"2eme B"},{"$f":"Score!X38","v":"1er A"},null,null,null,null,null,null,null,null,"POULE ESPOIR"]
[{"$f":"Score!V39","v":"14h53"},{"$f":"Score!W39","v":"2eme A"},{"$f":"Score!X39","v":"1er B"},null,null,null,null,null,null,null,"1er"]
[{"$f":"Score!V40","v":"15h07"},{"$f":"Score!W40","v":"5ème A"},{"$f":"Score!X40","v":"4ème B"},null,null,null,null,null,null,null,"2ème"]
[{"$f":"Score!V41","v":"15h21"},{"$f":"Score!W41","v":"4ème A"},{"$f":"Score!X41","v":"5ème B"},null,null,null,null,null,null,null,"3ème"]
[{"$f":"Score!V42","v":"15h35"},{"$f":"Score!W42","v":"3ème A"},{"$f":"Score!X42","v":"3ème B"},null,null,null,null,null,null,null,"4ème"]
[{"$f":"Score!V43","v":"15h49"},{"$f":"Score!W43","v":"2eme A"},{"$f":"Score!X43","v":"2eme B"},null,null,null,null,null,null,null,"5ème"]
[{"$f":"Score!V44","v":"16h03"},{"$f":"Score!W44","v":"1er A"},{"$f":"Score!X44","v":"1er B"},null,null,null,null,null,null,null,"6ème"]

{"sheet":"TABLE DE MARQUE","index":6,"n_rows":46,"n_cols":28,"rows_kept":46,"cut":false,"hidden":false,"merged":[[2,0,2,2],[43,11,43,16],[40,11,41,16]]}
[null,null,null,null,null,null,null,null,null,null,null,null,null,null,null,null,null,null,null,null,null,null,null,null,null,null,null,{"$f":"LEFT(CELL(\"filename\",L1),FIND(\"[\",CELL(\"filename\",L1))-2)&\"\\\"&\"2018-tournoi_m_15G.html\"","v":"C:\\Users\\seysf\\Dropbox\\! ! ! ! !Tournoi Noël 2023\\! Tournoi\\2018-tournoi_m_15G.html"}]
[null,null,null,null,null,null,null,null,null,null,null,null,null,null,null,null,null,null,null,null,null,null,null,null,null,null,null,"Date de derni&egrave;re modification : 04/12/2018 12:24:51"]
["TOURNOI INTERNATIONAL NOEL.\nStrasbourg, 2023",null,null,null,null,null,null,null,null,"MOINS DE 15 GARCONS\nSAMEDI 16 DECEMBRE 2023"]
[]
[null,"GYMNASE REUSS",null,null,null,null,null,null,"Gymnase JEAN-NICOLAS MULLER"]
[null,"62 Allée Reuss",null,null,null,null,null,null,"36, rue du Languedoc",null,null,"Suivi de la compétition en direct"]
[null,"67100 Strasbourg",null,null,null,null,null,null,"67100 Strasbourg",null,null,"Réultats et classement mis à jours"]
[null,null,null,null,null,null,null,null,null,null,null,null,"https://www.sshb.fr/TIN2023/2023m15G.html"]
[null,{"$f":"Score!E4","v":"GYMNASE REUSS"},null,null,null,null,null,null,{"$f":"Score!L4","v":"JEAN-NICOLAS MULLER"}]
[null,{"$f":"Score!E5","v":"AA"},null,null,null,null,null,null,{"$f":"Score!L5","v":"BA"}]
[null,{"$f":"Score!E6","v":"AB"},null,null,null,null,null,null,{"$f":"Score!L6","v":"BB"}]
[null,{"$f":"Score!E7","v":"AC"},null,null,null,null,null,null,{"$f":"Score!L7","v":"BC"}]
[null,{"$f":"Score!E8","v":"AD"},null,null,null,null,null,null,{"$f":"Score!L8","v":"BD"}]
[null,{"$f":"Score!E9","v":"AE"},null,null,null,null,null,null,{"$f":"Score!L9","v":"BE"}]
[]
[null,"Recevants","Visiteurs","Sc-R","Sc-V","Pt-R","Pt-V",null,"Recevants","Visiteurs","Sc-R","Sc-V","Pt-R","Pt-V"]
[{"$f":"Score!V7","v":"9h00"},{"$f":"Score!W7","v":"AA"},{"$f":"Score!X7","v":"AB"},null,null,null,null,null,{"$f":"Score!W19","v":"BA"},{"$f":"Score!X19","v":"BB"}]
[{"$f":"Score!V8","v":"9h19"},{"$f":"Score!W8","v":"AC"},{"$f":"Score!X8","v":"AD"},null,null,null,null,null,{"$f":"Score!W20","v":"BC"},{"$f":"Score!X20","v":"BD"}]
[{"$f":"Score!V9","v":"9h38"},{"$f":"Score!W9","v":"AE"},{"$f":"Score!X9","v":"AA"},null,null,null,null,null,{"$f":"Score!W21","v":"BE"},{"$f":"Score!X21","v":"BA"}]
[{"$f":"Score!V10","v":"9h52"},{"$f":"Score!W10","v":"AB"},{"$f":"Score!X10","v":"AC"},null,null,null,null,null,{"$f":"Score!W22","v":"BB"},{"$f":"Score!X22","v":"BC"}]
[{"$f":"Score!V11","v":"10h06"},{"$f":"Score!W11","v":"AD"},{"$f":"Score!X11","v":"AE"},null,null,null,null,null,{"$f":"Score!W23","v":"BD"},{"$f":"Score!X23","v":"BE"}]
[{"$f":"Score!V12","v":"10h20"},{"$f":"Score!W12","v":"AA"},{"$f":"Score!X12","v":"AC"},null,null,null,null,null,{"$f":"Score!W24","v":"BA"},{"$f":"Score!X24","v":"BC"}]
[{"$f":"Score!V13","v":"10h34"},{"$f":"Score!W13","v":"AB"},{"$f":"Score!X13","v":"AD"},null,null,null,null,null,{"$f":"Score!W25","v":"BB"},{"$f":"Score!X25","v":"BD"}]
[{"$f":"Score!V14","v":"10h48"},{"$f":"Score!W14","v":"AC"},{"$f":"Score!X14","v":"AE"},null,null,null,null,null,{"$f":"Score!W26","v":"BC"},{"$f":"Score!X26","v":"BE"}]
[{"$f":"Score!V15","v":"11h02"},{"$f":"Score!W15","v":"AD"},{"$f":"Score!X15","v":"AA"},null,null,null,null,null,{"$f":"Score!W27","v":"BD"},{"$f":"Score!X27","v":"BA"}]
[{"$f":"Score!V16","v":"11h16"},{"$f":"Score!W16","v":"AE"},{"$f":"Score!X16","v":"AB"},null,null,null,null,null,{"$f":"Score!W28","v":"BE"},{"$f":"Score!X28","v":"BB"}]
[null,"Pause repas",null,null,null,null,null,null,"Déplacement vers Gymnase des 2 rives (env 15min)"]
[null,"Une heure de repas sera précisée à chaque équipe ayant réservé ses repas\n"]
[null,"Recevants","Visiteurs","Sc-R","Sc-V","Pt-R","Pt-V"]
[{"$f":"Score!V30","v":"12h47"}]
[{"$f":"Score!V31","v":"13h01"},null,null,null,null,null,null,null,null,"PALMARES"]
[{"$f":"Score!V32","v":"13h15"},null,null,null,null,null,null,null,null,"POULE ELITE"]
[{"$f":"Score!V33","v":"13h29"},null,null,null,null,null,null,null,"1er"]
[{"$f":"Score!V34","v":"13h43"},null,null,null,null,null,null,null,"2ème"]
[{"$f":"Score!V35","v":"13h57"},null,null,null,null,null,null,null,"3ème"]
[{"$f":"Score!V36","v":"14h11"},null,null,null,null,null,null,null,"4ème"]
[{"$f":"Score!V37","v":"14h25"}]
[{"$f":"Score!V38","v":"14h39"},null,null,null,null,null,null,null,null,"POULE ESPOIR"]
[{"$f":"Score!V39","v":"14h53"},null,null,null,null,null,null,null,"1er"]
[{"$f":"Score!V40","v":"15h07"},null,null,null,null,null,null,null,"2ème",null,null,"ENVOYER LES RESULTATS SOUS CETTE FORME A CES NUMEROS"]
[{"$f":"Score!V41","v":"15h21"},null,null,null,null,null,null,null,"3ème",null,null,777613730]
[{"$f":"Score!V42","v":"15h35"},null,null,null,null,null,null,null,"4ème"]
[{"$f":"Score!V43","v":"15h49"},null,null,null,null,null,null,null,"5ème",null,null,"Format du SMS"]
[{"$f":"Score!V44","v":"16h03"},null,null,null,null,null,null,null,"6ème",null,null,"M15G - ATH 5 - 8 SSHB"]
[]
[null,"Si égalité à l'issue des matchs de brassage ou à l'issue des matchs de classement, goal avérage particulier, puis séance de jet de 7m (3 tirs puis but en or)"]